bitfinex-derivatives/quotes_SOLF0:USTF0_20250924
["timestamp","ask_amount","ask_price","bid_price","bid_amount"]
[1758731370779,9.12834396,214.01,213.98,4.2038]
[1758731370977,7.96,214.01,213.98,4.2038]
[1758731371682,7.96,214.03,213.98,4.2038]
[1758731371981,1.16826916,214.02,213.98,4.2038]
[1758731372283,9.12826916,214.01,213.98,4.2038]
[1758731372482,7.96,214.01,213.98,4.2038]
[1758731373282,7.96,214.01,213.99,4.2036]
[1758731373876,7.96,214.03,213.97,7.26]
[1758731374076,7.96,214.01,213.97,7.26]
[1758731374382,7.96,214.03,213.97,7.26]
[1758731374585,7.96,214.01,213.99,4.2036]
[1758731374782,7.96,214.01,213.97,7.26]
[1758731374979,7.96,214.03,213.97,7.26]
[1758731375284,7.96,214.01,213.98,4.2038]
[1758731375479,1.16831494,214.0,213.98,4.2038]
[1758731375681,7.96,214.01,213.98,4.2038]
[1758731375875,9.12831494,214.0,213.98,4.2038]
[1758731376178,7.96,214.0,213.98,4.2038]
[1758731376385,7.96,214.0,213.98,11.4638]
[1758731380384,4.44948942,213.99,213.98,11.4638]
[1758731381488,3.28117421,213.99,213.98,11.4638]
[1758731382390,4.44945209,213.99,213.98,11.4638]
[1758731386488,12.40945209,213.99,213.96,11.4643]
[1758731386682,12.40949804,213.98,213.96,11.4643]
[1758731386883,3.28117421,213.97,213.96,11.4643]
[1758731400803,3.28117421,213.97,213.96,4.2043]
[1758731401109,12.35952699,213.97,213.94,11.6746]
[1758731401406,3.28117421,213.96,213.95,7.47]
[1758731402205,3.28117421,213.96,213.94,2.15258211]
[1758731402409,128.50020288,214.02,213.95,7.47]
[1758731402706,4.45017952,214.01,214.0,7.47]
[1758731403110,3.28189332,214.01,214.0,7.47]
[1758731403406,14.97254493,214.01,213.91,7.47]
[1758731403602,7.91,213.99,213.91,2.15258211]
[1758731403904,3.28189332,213.98,213.92,7.47]
[1758731404110,3.28189332,213.97,213.94,2.15258211]
[1758731404310,5.17020288,214.02,213.96,7.47]
[1758731404511,1.1681471,214.01,213.97,7.47]
[1758731404705,7.91,214.04,213.96,7.47]
[1758731404906,6.33833287,214.03,213.96,7.47]
[1758731405110,1.16812999,214.02,213.97,2.15258211]
[1758731406111,1.16812999,214.02,213.98,7.47]
[1758731406408,1.16812999,214.02,214.0,4.2034]
[1758731406811,9.07812999,214.02,214.0,4.2034]
[1758731407109,1.16812999,214.01,213.98,7.47]
[1758731407506,9.07812999,214.01,213.98,7.47]
[1758731407810,1.16812999,214.0,213.98,7.47]
[1758731408011,1.16812999,214.0,213.93,65.4105]
[1758731408012,5.17020288,214.04,213.97,7.47]
[1758731408202,1.16814029,214.03,213.97,7.47]
[1758731408400,1.16814029,214.02,213.97,7.47]
[1758731408609,1.16814029,214.01,213.96,2.15258211]
[1758731408912,7.32278499,214.04,213.99,4.2036]
[1758731409209,13.08020288,214.01,213.93,7.47]
[1758731409401,1.16813988,214.0,213.93,7.47]
[1758731409601,7.91,213.99,213.95,7.47]
[1758731409805,1.16813988,213.98,213.95,7.47]
[1758731410208,1.16813988,213.98,213.93,7.47]
[1758731410409,1.16813988,213.98,213.92,2.15258211]
[1758731410610,1.16813988,213.98,213.93,7.47]
[1758731410812,7.91,214.0,213.98,4.2039]
[1758731411013,1.16825904,213.99,213.98,4.2039]
[1758731412508,9.07825904,213.99,213.98,4.2039]
[1758731412914,9.07825904,213.99,213.96,4.2042]
[1758731413114,1.16825904,213.98,213.96,4.2042]
[1758731413615,1.16825904,213.98,213.96,11.6742]
[1758731414217,1.16825904,213.98,213.96,4.2042]
[1758731414218,7.91,213.97,213.96,4.2042]
[1758731414515,9.07825904,213.97,213.96,4.2042]
[1758731415212,1.16825904,213.97,213.96,4.2042]
[1758731415415,1.16825904,213.97,213.96,11.6742]
[1758731416013,1.16825904,213.97,213.96,4.2042]
[1758731416213,1.16825904,213.97,213.96,11.6742]
[1758731416410,4.64453208,213.97,213.96,11.6742]
[1758731419114,4.64453208,213.97,213.94,11.6747]
[1758731419426,4.64453208,213.97,213.92,2.15258211]
[1758731419427,3.47627304,213.96,213.95,7.47]
[1758731421022,3.47627304,213.92,213.89,4.2056]
[1758731421220,3.47627304,213.91,213.9,7.47]
[1758731422115,3.47627304,213.91,213.87,4.206]
[1758731422316,12.55514208,213.9,213.84,2.15258211]
[1758731422516,4.64514208,213.89,213.84,2.15258211]
[1758731422716,3.47627304,213.88,213.85,7.47]
[1758731422915,3.47627304,213.87,213.84,2.15258211]
[1758731423121,3.47627304,213.86,213.85,7.47]
[1758731423323,3.47627304,213.86,213.85,11.6764]
[1758731424318,3.47627304,213.86,213.84,7.41]
[1758731424520,3.47627304,213.85,213.83,4.2068]
[1758731424719,3.47627304,213.84,213.81,13.76978211]
[1758731425022,3.47627304,213.83,213.82,7.41]
[1758731426221,13.00020288,213.91,213.82,7.41]
[1758731426414,4.62928537,213.9,213.83,2.15258211]
[1758731426614,3.46029593,213.89,213.83,2.15258211]
[1758731426810,3.46029593,213.88,213.83,2.15258211]
[1758731427018,3.46029593,213.87,213.83,2.15258211]
[1758731427218,3.46029593,213.86,213.84,4.2067]
[1758731427416,13.00020288,213.91,213.85,7.41]
[1758731427718,3.45843171,213.9,213.84,7.41]
[1758731427919,3.45843171,213.89,213.81,65.4466]
[1758731428114,3.45843171,213.88,213.85,7.41]
[1758731428316,3.45843171,213.87,213.84,2.15258211]
[1758731428519,3.45843171,213.86,213.85,7.41]
[1758731429224,3.45843171,213.86,213.85,11.6164]
[1758731430323,7.83,213.91,213.88,4.2059]
[1758731430522,3.45614822,213.9,213.88,4.2059]
[1758731430824,7.83,213.88,213.85,7.41]
[1758731431017,3.45614822,213.87,213.84,2.15258211]
[1758731431219,3.45614822,213.86,213.85,11.6165]
[1758731431417,7.83,213.91,213.85,7.41]
[1758731431613,3.45543849,213.9,213.84,2.15258211]
[1758731431819,7.83,213.95,213.88,9.56258211]
[1758731432019,3.4558287,213.94,213.88,9.56258211]
[1758731432219,3.4558287,213.93,213.88,2.15258211]
[1758731432424,3.4558287,213.92,213.89,7.41]
[1758731432623,3.4558287,213.91,213.89,7.41]
[1758731432824,3.4558287,213.9,213.89,7.41]
[1758731433028,3.4558287,213.9,213.89,11.6157]
[1758731433828,7.83,213.96,213.92,4.2051]
[1758731434020,3.45548952,213.95,213.91,2.15258211]
[1758731434218,3.45548952,213.94,213.93,2.15258211]
[1758731434427,5.17020288,214.02,213.93,2.15258211]
[1758731434625,3.45598831,214.01,213.96,2.15258211]
[1758731434818,3.45598831,214.0,213.96,7.41]
[1758731435017,11.28598831,213.99,213.96,7.41]
[1758731435221,11.28598831,213.98,213.94,9.56258211]
[1758731435416,11.28598831,213.97,213.94,2.15258211]
[1758731435623,3.45598831,213.96,213.94,2.15258211]
[1758731435818,3.45569425,213.95,213.94,9.56258211]
[1758731437329,3.45569425,213.95,213.94,7.41]
[1758731438128,7.83,214.02,213.98,4.2039]
[1758731438323,7.83,214.02,213.98,11.6139]
[1758731439424,7.83,214.04,213.98,11.6139]
[1758731439931,7.83,214.02,213.95,4.2044]
[1758731440120,4.2031,214.03,213.95,4.2044]
[1758731440325,8.99840375,214.02,213.94,9.56258211]
[1758731440527,7.83,214.02,213.96,2.15258211]
[1758731440723,15.15278499,214.06,213.97,7.41]
[1758731440931,1.16827161,214.05,213.97,7.41]
[1758731441127,15.15278499,214.06,213.99,4.2035]
[1758731441434,1.16825935,214.05,213.99,4.2035]
[1758731441631,7.83,214.06,213.98,2.15258211]
[1758731441833,7.83,214.06,214.03,7.41]
[1758731442026,2.15258211,214.06,213.98,2.15258211]
[1758731442227,7.83,214.05,213.98,13.76638211]
[1758731442423,7.83,214.05,213.98,9.56258211]
[1758731443030,7.83,214.05,214.0,4.2035]
[1758731443234,9.98258211,214.06,214.0,4.2035]
[1758731445040,7.83,214.05,214.01,11.6132]
[1758731446240,7.83,214.05,213.99,4.2037]
[1758731448536,7.83,214.05,213.99,7.41]
[1758731449747,7.83,214.05,214.01,4.2032]
[1758731449941,7.83,214.05,214.01,11.6132]
[1758731450142,3.4522749,214.04,214.01,11.6132]
[1758731450345,3.4522749,214.03,214.02,11.613]
[1758731454353,3.4522749,214.03,213.97,3.36168857]
[1758731454354,3.4522749,214.03,214.0,11.8435]
[1758731454554,7.83,214.07,214.0,11.8435]
[1758731454750,3.45185801,214.06,214.0,11.8435]
[1758731454946,11.13185801,214.05,214.01,7.64]
[1758731455149,11.13185801,214.04,214.01,7.64]
[1758731455351,3.45185801,214.03,214.01,7.64]
[1758731455550,7.68,214.04,214.01,7.64]
[1758731455747,3.45193261,214.03,214.01,11.8432]
[1758731455956,7.68,214.04,214.01,11.8432]
[1758731456157,3.45168346,214.03,214.01,11.8432]
[1758731456358,3.45168346,214.02,213.99,11.8437]
[1758731456553,122.51992,214.08,213.99,11.8437]
[1758731456753,11.13126301,214.07,213.99,7.64]
[1758731456952,3.45126301,214.06,213.99,7.64]
[1758731457153,3.45126301,214.05,213.99,7.64]
[1758731457355,3.45126301,214.04,213.96,7.64]
[1758731457551,3.45126301,214.03,213.96,7.64]
[1758731457752,3.45126301,214.02,213.96,7.64]
[1758731457954,7.68,214.06,213.96,7.64]
[1758731458154,3.45102206,214.05,213.96,7.64]
[1758731458359,3.45102206,214.04,213.98,7.64]
[1758731458557,3.45102206,214.03,213.98,7.64]
[1758731458758,3.45102206,214.02,213.98,7.64]
[1758731458958,7.68,214.06,213.98,7.64]
[1758731459162,3.45084083,214.05,214.01,4.2032]
[1758731459368,11.13084083,214.04,214.01,4.2032]
[1758731459663,3.45084083,214.03,214.01,4.2032]
[1758731459858,7.68,214.04,214.01,4.2032]
[1758731460161,3.4502472,214.03,214.01,4.2032]
[1758731460358,7.68,214.04,214.01,4.2032]
[1758731460559,3.44963593,214.03,214.01,4.2032]
[1758731460857,7.68,214.04,214.01,4.2032]
[1758731461161,3.44967063,214.03,214.02,4.203]
[1758731461657,2.99782,214.08,214.05,11.7125]
[1758731461861,3.44986426,214.07,214.05,11.7125]
[1758731462056,3.44986426,214.06,214.05,11.7125]
[1758731462454,3.44986426,214.06,214.05,7.51]
[1758731462659,11.38986426,214.06,213.99,7.51]
[1758731462961,3.44986426,214.05,213.99,7.51]
[1758731463162,3.44986426,214.04,213.95,7.51]
[1758731463363,3.44986426,214.03,213.95,7.51]
[1758731463561,3.44986426,214.02,213.95,7.51]
[1758731463758,7.94,214.05,213.95,7.51]
[1758731463962,3.44868286,214.04,213.95,7.51]
[1758731464159,3.44868286,214.03,213.95,7.51]
[1758731464360,3.44868286,214.02,213.95,7.51]
[1758731464560,3.44854624,214.01,213.95,7.51]
[1758731464758,7.94,213.99,213.89,10.87168857]
[1758731464959,3.44854624,213.98,213.89,10.87168857]
[1758731465161,3.44854624,213.97,213.89,3.36168857]
[1758731465463,7.94,213.99,213.9,7.51]
[1758731465659,3.44807562,213.98,213.9,7.51]
[1758731465857,3.44807562,213.97,213.9,7.51]
[1758731466063,7.94,213.99,213.9,7.51]
[1758731466265,11.38837323,213.98,213.94,7.51]
[1758731466465,3.44837323,213.97,213.94,7.51]
[1758731466663,11.38837323,213.97,213.94,7.51]
[1758731466859,3.44837323,213.96,213.94,11.7145]
[1758731467568,3.44837323,213.96,213.95,7.51]
[1758731467762,7.94,214.02,213.96,4.2042]
[1758731467958,7.94,214.0,213.96,11.7142]
[1758731468167,3.4524431,213.99,213.96,11.7142]
[1758731468362,3.4524431,213.99,213.91,65.416]
[1758731468363,3.4524431,213.99,213.98,7.51]
[1758731468555,3.4524431,214.03,213.96,7.51]
[1758731468762,3.4524431,214.03,213.98,3.36168857]
[1758731468962,10.93782,214.08,214.01,11.7133]
[1758731469169,3.45467996,214.07,214.01,7.51]
[1758731469467,11.39467996,214.06,213.99,7.51]
[1758731469663,3.45467996,214.05,214.04,7.51]
[1758731469867,3.45467996,214.05,214.02,7.51]
[1758731470066,2.99782,214.08,214.02,7.51]
[1758731470271,3.45441233,214.07,213.99,65.391]
[1758731470471,3.45441233,214.06,214.0,7.51]
[1758731470672,3.45441233,214.05,214.0,7.51]
[1758731470873,2.99782,214.08,214.0,7.51]
[1758731471075,3.45586076,214.07,214.0,7.51]
[1758731471370,11.39586076,214.06,214.0,7.51]
[1758731471672,7.94,214.04,213.97,7.51]
[1758731471874,3.45586076,214.03,213.97,7.51]
[1758731472173,3.45586076,214.02,213.97,7.51]
[1758731472373,11.39586076,214.01,213.94,115.16]
[1758731472577,11.39586076,214.0,213.93,7.51]
[1758731472875,3.45586076,213.99,213.9,7.51]
[1758731473174,7.94,213.97,213.9,7.51]
[1758731473371,3.45586076,213.96,213.9,7.51]
[1758731473573,11.39586076,213.95,213.9,7.51]
[1758731473772,3.45586076,213.94,213.87,7.51]
[1758731474066,3.45586076,213.93,213.92,7.51]
[1758731474672,3.45273006,213.93,213.92,7.51]
[1758731477179,3.45623408,213.93,213.92,7.51]
[1758731477379,7.94,213.97,213.91,4.2053]
[1758731477572,11.39623408,213.96,213.91,11.7153]
[1758731477774,3.45623408,213.95,213.91,11.7153]
[1758731477975,3.45623408,213.94,213.91,11.7153]
[1758731478170,3.45623408,213.93,213.91,11.7153]
[1758731478371,3.45623408,213.92,213.91,11.7153]
[1758731478581,7.94,213.93,213.89,4.2057]
[1758731478879,3.45623408,213.92,213.89,4.2057]
[1758731479477,3.45623408,213.92,213.9,11.7153]
[1758731479680,3.45623408,213.91,213.9,11.7153]
[1758731480276,3.45623408,213.91,213.9,4.2053]
[1758731480475,3.45623408,213.91,213.88,11.7159]
[1758731480781,3.45623408,213.9,213.89,7.51]
[1758731481185,7.94,213.94,213.9,4.2055]
[1758731481378,3.45527082,213.93,213.9,4.2055]
[1758731481586,3.45527082,213.92,213.9,4.2055]
[1758731481889,3.45527082,213.91,213.9,11.7155]
[1758731483284,7.94,213.9,213.88,4.2059]
[1758731483476,3.45527082,213.89,213.86,7.51]
[1758731483676,3.45527082,213.88,213.86,7.51]
[1758731483976,7.94,213.92,213.87,4.2059]
[1758731484276,3.45421586,213.91,213.88,7.73]
[1758731484477,3.45421586,213.9,213.88,7.73]
[1758731484678,3.45421586,213.89,213.88,7.73]
[1758731484982,7.46,213.97,213.89,73.1524]
[1758731485783,7.46,213.97,213.86,7.73]
[1758731485985,1.16871521,213.96,213.86,7.73]
[1758731486187,7.46,213.97,213.86,7.73]
[1758731486380,1.16872015,213.96,213.86,7.73]
[1758731486580,7.46,213.97,213.89,4.2056]
[1758731486783,1.16872015,213.96,213.89,4.2056]
[1758731486976,7.46,213.97,213.89,4.2056]
[1758731487178,1.16871211,213.96,213.89,4.2056]
[1758731487377,7.46,213.97,213.9,4.2053]
[1758731487582,1.16870809,213.96,213.9,4.2053]
[1758731487781,7.46,213.97,213.9,4.2053]
[1758731488983,7.46,213.97,213.91,4.2052]
[1758731490983,5.17020288,214.0,213.89,7.73]
[1758731491180,1.16858634,213.99,213.89,7.73]
[1758731491484,7.46,214.0,213.93,4.2048]
[1758731491685,1.16858634,213.99,213.93,4.2048]
[1758731491890,7.46,214.0,213.93,4.2048]
[1758731492784,7.46,213.97,213.91,4.2052]
[1758731495495,7.46,213.95,213.91,4.2052]
[1758731495689,12.73599145,213.98,213.91,4.2052]
[1758731495690,7.46,213.97,213.91,4.2052]
[1758731495890,7.46,213.95,213.91,4.2052]
[1758731496094,7.46,213.97,213.91,4.2052]
[1758731496393,1.16871995,213.96,213.91,4.2052]
[1758731496594,7.46,213.97,213.91,4.2052]
[1758731496798,4.6070973,213.96,213.91,4.2052]
[1758731496992,7.46,213.94,213.91,4.2052]
[1758731497192,10.82168857,213.92,213.79,65.4509]
[1758731497495,7.46,213.9,213.8,7.73]
[1758731497689,3.43837735,213.89,213.8,7.73]
[1758731497893,3.43837735,213.88,213.8,7.73]
[1758731498095,3.43837735,213.87,213.86,4.2062]
[1758731499597,3.43837735,213.87,213.85,7.73]
[1758731499791,3.43837735,213.86,213.85,7.73]
[1758731504398,3.43837735,213.86,213.84,4.2066]
[1758731504699,7.46,213.9,213.84,11.9366]
[1758731504899,7.46,213.88,213.84,11.9366]
[1758731505095,3.43014254,213.87,213.84,11.9366]
[1758731505302,3.43014254,213.86,213.84,11.9366]
[1758731505499,7.46,213.88,213.84,11.9366]
[1758731505704,3.42990638,213.87,213.85,4.2064]
[1758731505905,3.42990638,213.86,213.85,4.2064]
[1758731506506,3.42990638,213.86,213.77,7.73]
[1758731506711,7.46,213.84,213.77,7.73]
[1758731506910,3.42990638,213.83,213.77,7.73]
[1758731507108,3.42990638,213.83,213.81,4.2072]
[1758731507308,3.42990638,213.82,213.81,4.2072]
[1758731507508,3.42990638,213.85,213.81,11.9372]
[1758731507710,3.42990638,213.84,213.81,7.73]
[1758731507905,3.42990638,213.83,213.81,7.73]
[1758731508106,3.42990638,213.82,213.81,7.73]
[1758731508501,3.42990638,213.82,213.81,11.9372]
[1758731508701,5.17020288,213.9,213.81,7.73]
[1758731508904,4.59409335,213.89,213.81,7.73]
[1758731509102,3.4249371,213.88,213.81,7.73]
[1758731509309,3.4249371,213.87,213.84,4.2066]
[1758731509507,3.4249371,213.86,213.85,7.73]
[1758731510610,3.71e-05,213.86,213.85,7.73]
[1758731510810,5.17020288,213.96,213.9,7.73]
[1758731511016,1.16881423,213.95,213.89,4.2055]
[1758731511219,37.39020288,213.97,213.91,4.2051]
[1758731511420,7.46,213.95,213.87,7.73]
[1758731512515,9.61400829,213.95,213.87,7.73]
[1758731513316,7.46,213.94,213.9,4.2054]
[1758731513713,2.15400829,213.95,213.9,4.2054]
[1758731514019,7.57,213.95,213.89,7.43]
[1758731514719,2.15400829,213.94,213.86,7.43]
[1758731515422,7.57,213.93,213.9,4.2054]
[1758731515722,7.57,213.93,213.86,9.58400829]
[1758731516017,7.57,213.93,213.86,2.15400829]
[1758731516215,7.57,213.93,213.87,7.43]
[1758731516414,2.15400829,213.92,213.87,7.43]
[1758731516618,7.57,213.91,213.87,7.43]
[1758731517014,7.57,213.91,213.85,7.43]
[1758731518320,7.57,213.91,213.87,4.2059]
[1758731518618,2.15400829,213.9,213.85,7.43]
[1758731518814,7.57,213.89,213.85,7.43]
[1758731519019,2.15400829,213.9,213.85,11.6364]
[1758731519221,7.57,213.89,213.85,11.6364]
[1758731519520,7.57,213.89,213.85,4.2064]
[1758731520122,2.15400829,213.9,213.85,4.2064]
[1758731520320,8.87899032,213.89,213.86,4.2062]
[1758731520520,7.71,213.89,213.86,4.2062]
[1758731522713,3.41593202,213.88,213.86,4.2062]
[1758731523017,3.41593202,213.87,213.86,4.2062]
[1758731523218,11.12593202,213.87,213.84,4.2066]
[1758731523420,11.12593202,213.87,213.84,11.6266]
[1758731523421,3.41593202,213.86,213.84,11.6266]
[1758731523621,3.41593202,213.85,213.84,11.6266]
[1758731524026,3.41593202,213.86,213.84,11.6266]
[1758731524227,3.41593202,213.85,213.84,11.6266]
[1758731524923,3.41593202,213.86,213.84,11.6266]
[1758731525120,3.41593202,213.85,213.84,11.6266]
[1758731525327,5.17020288,213.92,213.88,7.42]
[1758731525523,4.58549793,213.91,213.88,7.42]
[1758731525828,9.86400829,213.89,213.81,7.42]
[1758731526124,4.58569826,213.88,213.81,7.42]
[1758731526326,3.41659636,213.87,213.81,7.42]
[1758731526522,3.41659636,213.86,213.8,7.42]
[1758731526724,3.41659636,213.85,213.8,7.42]
[1758731526925,3.41659636,213.84,213.79,2.15400829]
[1758731527228,3.41659636,213.83,213.77,2.15400829]
[1758731527422,3.41659636,213.82,213.78,7.42]
[1758731527622,3.41659636,213.81,213.79,4.2077]
[1758731527918,7.71,213.86,213.78,7.42]
[1758731528123,3.39857974,213.85,213.82,11.627]
[1758731528323,3.39857974,213.84,213.82,11.627]
[1758731528518,3.39857974,213.83,213.82,11.627]
[1758731529627,12.88020288,213.9,213.82,7.42]
[1758731529628,7.71,213.9,213.82,7.42]
[1758731529830,12.88020288,213.94,213.85,2.15400829]
[1758731530030,1.16892806,213.93,213.86,7.42]
[1758731530224,12.88020288,213.94,213.9,4.2054]
[1758731530420,1.16885361,213.93,213.9,4.2054]
[1758731530627,7.32421117,213.95,213.9,4.2054]
[1758731530821,1.16881554,213.94,213.87,4.206]
[1758731531022,7.71,213.92,213.83,2.15400829]
[1758731531331,7.71,213.9,213.82,7.42]
[1758731531632,1.16900257,213.89,213.82,7.42]
[1758731531931,2.15400829,213.89,213.82,7.42]
[1758731532131,2.15400829,213.87,213.83,4.2068]
[1758731532327,7.71,213.86,213.83,4.2068]
[1758731533534,7.71,213.86,213.81,4.2073]
[1758731533729,7.71,213.86,213.79,7.42]
[1758731534330,9.86400829,213.87,213.79,7.42]
[1758731534525,1.16918967,213.86,213.79,7.42]
[1758731534735,9.86400829,213.87,213.79,7.42]
[1758731534932,1.16916498,213.86,213.79,7.42]
[1758731535230,9.86400829,213.87,213.79,7.42]
[1758731535432,1.16916529,213.86,213.79,9.57400829]
[1758731535631,7.71,213.87,213.8,7.42]
[1758731537136,1.16915693,213.86,213.8,7.42]
[1758731537438,2.15400829,213.88,213.83,4.2067]
[1758731537628,8.87908218,213.87,213.83,4.2067]
[1758731537934,7.71,213.87,213.83,4.2067]
[1758731538134,2.15400829,213.88,213.83,4.2067]
[1758731538340,8.87908218,213.87,213.83,4.2067]
[1758731538531,5.17020288,213.89,213.82,72.8638]
[1758731538737,5.17020288,213.92,213.84,7.42]
[1758731539033,1.16896488,213.91,213.84,7.42]
[1758731539233,1.16896488,213.9,213.84,7.42]
[1758731539435,5.17020288,213.92,213.84,7.42]
[1758731539734,1.16896427,213.91,213.84,7.42]
[1758731539933,1.16896427,213.9,213.84,7.42]
[1758731540135,5.17020288,213.92,213.85,2.15400829]
[1758731540332,14.04916673,213.91,213.87,11.6259]
[1758731540530,1.16896385,213.9,213.87,11.6259]
[1758731540730,12.88020288,213.91,213.87,11.6259]
[1758731540931,1.16896385,213.9,213.87,11.6259]
[1758731541136,12.88020288,213.91,213.87,11.6259]
[1758731541336,1.16896385,213.9,213.87,11.6259]
[1758731541538,7.71,213.91,213.87,11.6259]
[1758731541735,3.42539894,213.9,213.87,11.6259]
[1758731541932,3.42539894,213.89,213.87,11.6259]
[1758731542136,3.42539894,213.88,213.87,11.6259]
[1758731544043,5.17020288,213.94,213.92,7.37]
[1758731544235,49.05020288,213.96,213.9,7.37]
[1758731544434,1.16872292,213.95,213.89,2.15400829]
[1758731544631,5.17020288,213.97,213.92,7.37]
[1758731544836,7.25,213.95,213.92,4.2051]
[1758731545439,5.17020288,213.98,213.93,11.5747]
[1758731545636,8.41865447,213.97,213.93,11.5747]
[1758731545836,1.16865447,213.96,213.93,11.5747]
[1758731546032,7.25,213.97,213.93,11.5747]
[1758731546237,1.1686458,213.96,213.93,11.5747]
[1758731546437,7.25,213.97,213.93,11.5747]
[1758731546643,1.16864608,213.96,213.93,11.5747]
[1758731546947,7.25,213.97,213.93,11.5747]
[1758731547140,1.16864594,213.96,213.93,11.5747]
[1758731547338,7.25,213.97,213.93,11.5747]
[1758731547539,1.16864594,213.96,213.93,11.5747]
[1758731547843,7.25,213.97,213.91,6.35930829]
[1758731548046,8.4186458,213.96,213.92,7.37]
[1758731548234,7.25,213.96,213.92,7.37]
[1758731548437,5.17020288,213.99,213.93,7.37]
[1758731548639,1.16863759,213.98,213.95,2.15400829]
[1758731548838,5.17020288,214.01,213.98,4.2039]
[1758731549138,1.16854592,214.0,213.98,4.2039]
[1758731549336,1.16854592,213.99,213.98,4.2039]
[1758731550445,1.16854592,213.99,213.96,7.37]
[1758731550645,5.17020288,214.01,213.95,2.15400829]
[1758731550646,12.42020288,214.01,213.95,2.15400829]
[1758731550947,1.16854609,214.0,213.96,7.37]
[1758731551150,1.16854609,213.99,213.96,7.37]
[1758731551448,12.42020288,214.01,213.96,7.37]
[1758731551643,1.16854609,214.0,213.96,7.37]
[1758731551848,1.16854609,213.99,213.96,4.2042]
[1758731552145,7.25,214.01,213.97,7.37]
[1758731552343,1.16854609,214.0,213.97,7.37]
[1758731552551,1.16854609,213.99,213.97,7.37]
[1758731552841,5.17020288,214.02,213.97,7.37]
[1758731553041,15.74275726,214.01,213.94,4.2046]
[1758731553247,2.15400829,213.99,213.94,4.2046]
[1758731553446,7.25,213.98,213.94,4.2046]
[1758731554048,2.15400829,213.99,213.93,7.37]
[1758731554250,8.41860877,213.98,213.92,4.2051]
[1758731554457,2.15400829,213.97,213.92,4.2051]
[1758731554743,7.25,213.96,213.92,4.2051]
[1758731555142,2.15400829,213.97,213.92,4.2051]
[1758731556041,7.25,213.95,213.92,4.2051]
[1758731556238,3.37874943,213.94,213.92,4.2051]
[1758731556549,3.37874943,213.93,213.9,11.5754]
[1758731556750,3.37874943,213.92,213.9,11.5754]
[1758731556944,3.37874943,213.91,213.9,11.5754]
[1758731559349,3.37874943,213.91,213.88,4.86058358]
[1758731559546,3.37874943,213.9,213.88,12.23058358]
[1758731559849,65.3873,214.01,213.88,7.37]
[1758731559850,3.37874943,213.89,213.88,7.37]
[1758731560048,3.37874943,213.89,213.88,11.5758]
[1758731560249,10.62874943,213.92,213.88,11.5758]
[1758731560450,3.37874943,213.91,213.88,11.5758]
[1758731560750,10.62874943,213.91,213.88,4.2058]
[1758731560952,3.37874943,213.9,213.88,4.2058]
[1758731561850,9.40400829,213.95,213.91,7.37]
[1758731562049,11.81569633,213.94,213.91,7.37]
[1758731562348,2.15400829,213.95,213.9,4.2055]
[1758731562349,10.64690193,213.93,213.9,4.2055]
[1758731562551,3.39690193,213.92,213.9,4.2055]
[1758731562849,3.39690193,213.91,213.9,4.2055]
[1758731564546,7.25,213.9,213.87,4.2059]
[1758731564746,10.64690193,213.89,213.83,7.37]
[1758731564949,3.39690193,213.88,213.82,7.37]
[1758731565245,3.39690193,213.87,213.82,7.37]
[1758731565445,3.39690193,213.86,213.82,7.37]
[1758731565747,3.39690193,213.85,213.81,67.60130829]
[1758731565950,7.25,213.9,213.82,7.37]
[1758731566150,3.39737188,213.89,213.85,4.2063]
[1758731566349,3.39737188,213.88,213.85,11.5763]
[1758731566649,3.39737188,213.87,213.85,11.5763]